bitfinex/quotes_SOLUSD_20250210
["timestamp","ask_amount","ask_price","bid_price","bid_amount"]
[1739187200303,81.0,205.05,205.04,13.4485138]
[1739187200901,81.03,205.05,205.04,13.4485138]
[1739187201298,81.03,205.05,205.04,8.5715138]
[1739187203610,13.41184853,205.04,205.03,8.5716138]
[1739187203911,13.66282853,205.04,205.03,0.0001]
[1739187204112,14.57754422,205.04,205.03,0.0001]
[1739187204612,23.14905802,205.04,205.03,0.0001]
[1739187205306,14.57754422,205.04,205.03,0.0001]
[1739187205615,19.45454422,205.04,205.03,0.0001]
[1739187206016,24.94399657,205.04,205.03,0.0001]
[1739187207030,19.45454422,205.04,205.03,0.0001]
[1739187208414,28.03119061,205.04,205.03,0.0001]
[1739187209117,19.45454422,205.04,205.03,0.0001]
[1739187209916,28.03119061,205.04,205.03,0.0001]
[1739187210618,19.45454422,205.04,205.03,0.0001]
[1739187211117,28.03119061,205.04,205.03,0.0001]
[1739187214122,19.45454422,205.04,205.03,0.0001]
[1739187223961,19.48454422,205.04,205.03,0.0001]
[1739187225856,34.14454422,205.04,205.03,0.0001]
[1739187226055,19.48454422,205.04,205.03,0.0001]
[1739187226759,14.60754422,205.04,205.03,0.0001]
[1739187226948,0.03,205.04,205.03,8.57674639]
[1739187227966,0.03,205.04,205.03,0.0001]
[1739187229964,0.03,205.04,205.03,5.48704129]
[1739187230449,0.03,205.04,205.03,0.0001]
[1739187231442,0.03,205.04,205.03,5.48704129]
[1739187231955,0.03,205.04,205.03,0.0001]
[1739187235670,0.03,205.04,205.03,5.48704129]
[1739187238154,0.03,205.04,205.03,0.0001]
[1739187238554,0.03,205.04,205.03,5.48704129]
[1739187241770,0.03,205.04,205.03,10.36434129]
[1739187243681,0.03,205.04,205.03,32.31210645]
[1739187243868,0.03,205.05,205.03,32.31210645]
[1739187244069,81.0,205.16,205.06,7.05124129]
[1739187244259,81.0,205.16,205.08,5.48694129]
[1739187244466,81.0,205.21,205.15,5.48694129]
[1739187244664,81.0,205.21,205.18,5.48694129]
[1739187244982,13.41184853,205.2,205.16,5.48694129]
[1739187245967,13.41184853,205.2,205.17,5.48694129]
[1739187246168,13.41184853,205.2,205.16,5.48694129]
[1739187246762,18.28524853,205.2,205.16,5.48694129]
[1739187248376,13.41184853,205.2,205.16,5.48694129]
[1739187249177,18.28514853,205.2,205.16,5.48694129]
[1739187249579,0.25098,205.19,205.14,5.48694129]
[1739187250377,13.41184853,205.15,205.14,5.48694129]
[1739187252076,13.41184853,205.15,205.13,5.48694129]
[1739187252985,18.28584853,205.17,205.13,5.48694129]
[1739187254578,81.25098,205.16,205.13,5.48694129]
[1739187254779,86.73792129,205.16,205.09,5.48694129]
[1739187254986,13.41184853,205.12,205.08,5.48694129]
[1739187256467,18.53752853,205.14,205.09,5.48694129]
[1739187256773,18.28654853,205.14,205.09,5.48694129]
[1739187256983,81.0,205.15,205.13,5.48694129]
[1739187257290,81.0,205.15,205.14,5.48694129]
[1739187258197,94.41184853,205.15,205.14,5.48694129]
[1739187258379,81.0,205.15,205.14,5.48694129]
[1739187258965,81.0,205.15,205.14,10.36164129]
[1739187259788,81.0,205.22,205.14,10.36164129]
[1739187259970,81.0,205.21,205.2,5.48694129]
[1739187260768,0.03,205.23,205.2,10.36014129]
[1739187260975,0.03,205.23,205.22,5.48694129]
[1739187262692,0.03,205.36,205.25,20.0]
[1739187262870,0.03,205.36,205.35,5.48694129]
[1739187263071,0.03,205.36,205.33,5.48694129]
[1739187263700,0.03,205.36,205.33,8.54756245]
[1739187267590,0.03,205.36,205.35,8.54756245]
[1739187270081,0.03,205.36,205.34,8.54756245]
[1739187270582,0.03,205.36,205.33,8.54756245]
[1739187272096,0.03,205.36,205.34,8.54756245]
[1739187273407,0.03,205.36,205.33,8.54756245]
[1739187274178,0.28098,205.36,205.32,8.54756245]
[1739187274402,13.41184853,205.34,205.3,8.54756245]
[1739187274601,13.41184853,205.32,205.27,4.8715]
[1739187274802,13.41184853,205.32,205.31,8.54756245]
[1739187279007,81.0,205.33,205.31,8.54756245]
[1739187279214,81.0,205.33,205.32,8.54756245]
[1739187279428,94.41184853,205.33,205.32,8.54756245]
[1739187279939,13.41184853,205.31,205.29,8.54756245]
[1739187280902,13.41184853,205.31,205.27,8.54756245]
[1739187281106,18.28264853,205.31,205.26,8.54756245]
[1739187281307,18.28264853,205.31,205.27,8.54756245]
[1739187281940,13.41184853,205.31,205.29,8.54756245]
[1739187282132,13.41184853,205.31,205.3,8.54756245]
[1739187282429,81.0,205.32,205.3,8.54756245]
[1739187282722,81.0,205.32,205.31,8.54756245]
[1739187282925,0.03,205.36,205.31,8.54756245]
[1739187283115,0.03,205.36,205.35,8.54756245]
[1739187284327,0.03,205.36,205.33,8.54756245]
[1739187284629,13.66282853,205.35,205.29,8.54756245]
[1739187284799,81.0,205.34,205.27,4.8714]
[1739187285002,81.0,205.34,205.33,8.54756245]
[1739187286930,81.0,205.34,205.33,13.41776245]
[1739187288522,0.03,205.36,205.33,13.41776245]
[1739187288727,0.03,205.36,205.35,8.54756245]
[1739187290610,0.03,205.36,205.35,13.41726245]
[1739187291111,0.03,205.36,205.35,8.54756245]
[1739187298317,0.03,205.36,205.34,8.54756245]
[1739187298736,13.41184853,205.35,205.32,8.54756245]
[1739187300350,4.8699,205.35,205.32,8.54756245]
[1739187300550,0.25098,205.34,205.31,8.54756245]
[1739187300734,0.25098,205.32,205.26,8.61056245]
[1739187300934,13.41184853,205.33,205.29,8.54756245]
[1739187301136,81.0,205.35,205.32,8.54756245]
[1739187301334,81.0,205.35,205.33,8.54756245]
[1739187302326,0.03,205.36,205.34,8.54756245]
[1739187302533,0.03,205.36,205.35,8.54756245]
[1739187304154,0.03,205.36,205.35,13.41726245]
[1739187305850,0.03,205.36,205.35,8.54756245]
[1739187306354,0.03,205.36,205.35,13.41726245]
[1739187306847,0.03,205.36,205.35,21.9648249]
[1739187307152,0.03,205.36,205.35,23.16466289]
[1739187307336,0.03,205.36,205.35,21.9648249]
[1739187308761,87.4749,205.5,205.36,1.0]
[1739187308972,87.4749,205.5,205.44,8.54756245]
[1739187308973,81.0,205.49,205.44,8.54756245]
[1739187309263,13.41184853,205.48,205.45,8.54756245]
[1739187309638,13.41184853,205.48,205.44,8.54756245]
[1739187310450,13.41184853,205.48,205.46,8.54756245]
[1739187311870,13.41184853,205.48,205.47,8.54756245]
[1739187312876,81.0,205.49,205.47,8.54756245]
[1739187313056,81.0,205.49,205.48,8.54756245]
[1739187313571,1.6452,205.54,205.48,8.54756245]
[1739187313765,13.41184853,205.53,205.51,8.54756245]
[1739187313939,13.41184853,205.53,205.52,8.54756245]
[1739187314138,13.41184853,205.53,205.51,8.54756245]
[1739187314340,13.41184853,205.53,205.52,8.54756245]
[1739187314747,0.03,205.57,205.52,8.54756245]
[1739187315070,0.03,205.57,205.56,8.54756245]
[1739187316171,0.03,205.57,205.55,8.54756245]
[1739187316674,0.03,205.57,205.53,8.54756245]
[1739187317248,0.03,205.57,205.55,8.54756245]
[1739187317559,0.03,205.57,205.56,8.54756245]
[1739187321259,0.03,205.57,205.56,13.41226245]
[1739187321566,0.03,205.57,205.56,8.54756245]
[1739187322674,0.03,205.57,205.56,13.41226245]
[1739187323065,4.8609,205.72,205.56,21.9598249]
[1739187323269,20.0,205.7,205.66,8.54756245]
[1739187323463,4.8609,205.72,205.66,8.54756245]
[1739187323665,13.40846245,205.72,205.65,8.54756245]
[1739187323873,13.66282853,205.71,205.65,8.54756245]
[1739187324177,22.21039098,205.71,205.64,8.54756245]
[1739187324784,4.8614,205.7,205.64,8.54756245]
[1739187324977,13.66282853,205.69,205.63,8.54756245]
[1739187325187,13.66282853,205.69,205.64,8.54756245]
[1739187326477,4.8614,205.7,205.65,8.54756245]
[1739187326478,13.66282853,205.7,205.65,8.54756245]
[1739187326778,24.8616,205.69,205.65,8.54756245]
[1739187327788,24.8616,205.69,205.64,8.54756245]
[1739187328688,24.8916,205.69,205.65,8.54756245]
[1739187329880,24.8916,205.69,205.66,8.54756245]
[1739187330274,24.8916,205.69,205.65,8.54756245]
[1739187330781,24.8916,205.69,205.66,8.54756245]
[1739187331589,13.41184853,205.68,205.66,5.45327772]
[1739187331788,0.25098,205.67,205.63,5.45327772]
[1739187331986,0.25098,205.67,205.62,5.45327772]
[1739187332180,0.25098,205.67,205.61,5.45327772]
[1739187332489,13.66282853,205.65,205.6,5.45327772]
[1739187332794,13.66282853,205.65,205.61,5.45327772]
[1739187332971,4.8628,205.64,205.61,5.45327772]
[1739187333182,0.25098,205.63,205.6,5.45327772]
[1739187333368,19.19337772,205.67,205.53,8.0321]
[1739187333369,4.8619,205.68,205.62,5.45327772]
[1739187333573,4.8619,205.68,205.63,8.52306429]
[1739187333780,20.0,205.67,205.62,8.52306429]
[1739187334077,33.66282853,205.66,205.62,8.52306429]
[1739187334277,33.66282853,205.66,205.61,8.52306429]
[1739187334494,33.66282853,205.66,205.6,8.52306429]
[1739187334680,1.83528,205.64,205.58,8.52306429]
[1739187335175,13.66282853,205.62,205.58,8.52306429]
[1739187335376,13.66282853,205.62,205.59,8.52306429]
[1739187336394,5.11438,205.62,205.58,8.52306429]
[1739187336990,0.25098,205.62,205.59,8.52306429]
[1739187337293,26.3157,205.66,205.61,8.52306429]
[1739187337479,26.3157,205.66,205.63,8.52306429]
[1739187337674,20.0,205.66,205.63,8.52306429]
[1739187337877,81.0,205.67,205.64,8.52306429]
[1739187338188,81.0,205.67,205.65,8.52306429]
[1739187338388,13.41184853,205.66,205.65,8.52306429]
[1739187338589,13.41184853,205.66,205.64,8.52306429]
[1739187338786,1.6143,205.69,205.65,8.52306429]
[1739187338992,1.6143,205.69,205.66,8.52306429]
[1739187339907,13.41184853,205.68,205.66,8.52306429]
[1739187340911,0.03,205.69,205.67,8.52306429]
[1739187341109,0.03,205.69,205.68,8.52306429]
[1739187349220,0.03,205.69,205.66,8.52306429]
[1739187349612,0.03,205.69,205.65,8.52306429]
[1739187350127,0.03,205.69,205.63,8.52306429]
[1739187350296,21.96491282,205.69,205.62,8.52306429]
[1739187350795,13.41184853,205.67,205.61,8.52306429]
[1739187351017,0.03,205.69,205.64,8.52306429]
[1739187351195,0.03,205.69,205.65,8.52306429]
[1739187351892,0.28098,205.69,205.63,8.52306429]
[1739187352093,13.41184853,205.67,205.62,8.52306429]
[1739187353634,13.41184853,205.67,205.62,5.4549932]
[1739187354333,13.41184853,205.67,205.64,5.4549932]
[1739187355223,13.41184853,205.67,205.63,5.4549932]
[1739187355611,4.8619,205.68,205.63,5.4549932]
[1739187355808,13.41184853,205.67,205.62,5.4549932]
[1739187356840,4.8622,205.67,205.62,5.4549932]
[1739187357143,0.25098,205.63,205.57,5.5179932]
[1739187357315,5.4549932,205.65,205.57,5.5179932]
[1739187357504,81.0,205.66,205.59,5.4549932]
[1739187357703,81.0,205.66,205.6,5.4549932]
[1739187357908,13.66282853,205.62,205.57,0.063]
[1739187358134,13.41184853,205.6,205.57,0.063]
[1739187358802,10.5701732,205.58,205.57,0.063]
[1739187359034,25.56002173,205.58,205.57,0.063]
[1739187359202,41.22002173,205.58,205.57,0.0001]
[1739187359402,0.25098,205.52,205.45,5.4549932]
[1739187359721,13.66282853,205.52,205.46,8.53773397]
[1739187361332,18.52852853,205.52,205.46,8.53773397]
[1739187362247,13.40313397,205.54,205.47,8.53773397]
[1739187362415,2.80070287,205.58,205.44,4.8675]
[1739187362416,20.0,205.55,205.49,8.53773397]
[1739187362737,6.4424,205.58,205.52,8.53773397]
[1739187362949,6.4424,205.58,205.53,8.53773397]
[1739187363242,100.85424853,205.58,205.53,8.53773397]
[1739187363445,81.0,205.58,205.55,8.53773397]
[1739187363616,81.0,205.58,205.56,8.53773397]
[1739187363818,81.0,205.58,205.57,8.53773397]
[1739187364131,13.66282853,205.61,205.55,8.53773397]
[1739187365043,1.578,205.63,205.58,8.53773397]
[1739187365351,85.863,205.64,205.62,8.53773397]
[1739187365352,81.0,205.64,205.62,8.53773397]
[1739187366418,9.21717047,205.68,205.62,8.53773397]
[1739187366618,13.41184853,205.67,205.62,8.53773397]
[1739187366827,0.25098,205.66,205.6,8.53773397]
[1739187367517,5.11348,205.66,205.6,8.53773397]
[1739187368249,5.11348,205.66,205.61,8.53773397]
[1739187369023,5.11348,205.66,205.6,8.53773397]
[1739187369222,5.11348,205.66,205.59,8.53773397]
[1739187369737,5.11348,205.66,205.6,8.53773397]
[1739187370617,5.11348,205.66,205.61,8.53773397]
[1739187371117,5.11348,205.66,205.6,8.53773397]
[1739187371424,0.25098,205.64,205.59,8.53773397]
[1739187371760,13.41184853,205.63,205.57,8.53773397]
[1739187372048,94.41184853,205.63,205.58,8.53773397]
[1739187372433,99.27494853,205.63,205.57,8.53773397]
[1739187372833,107.8126825,205.63,205.56,8.53773397]
[1739187373647,8.78871397,205.62,205.55,8.53773397]
[1739187374454,13.41184853,205.61,205.55,8.53773397]
[1739187374747,21.9495825,205.59,205.54,0.063]
[1739187375136,5.11448,205.62,205.55,8.53773397]
[1739187375843,13.41184853,205.61,205.55,8.53773397]
[1739187376019,13.41184853,205.61,205.54,8.60073397]
[1739187376945,13.41184853,205.59,205.54,8.60073397]
[1739187377848,13.41184853,205.59,205.54,0.063]
[1739187378137,13.44184853,205.59,205.54,0.063]
[1739187378342,13.41184853,205.57,205.54,0.063]
[1739187378546,21.9495825,205.57,205.54,0.063]
[1739187378745,13.41184853,205.55,205.54,0.063]
[1739187379246,22.2005625,205.55,205.54,0.063]
[1739187380746,4.8647,205.56,205.54,0.063]
[1739187380935,13.40223397,205.57,205.54,0.063]
[1739187381141,87.4975,205.58,205.52,8.53773397]
[1739187381640,13.41184853,205.57,205.51,8.53773397]
[1739187382348,18.27644853,205.57,205.51,8.53773397]
[1739187383457,13.41184853,205.57,205.52,8.53773397]
[1739187383748,0.03,205.59,205.55,8.53773397]
[1739187383921,18.30584853,205.59,205.54,8.53773397]
[1739187384131,13.41184853,205.58,205.53,8.53773397]
[1739187388249,13.41184853,205.57,205.5,8.53773397]
[1739187388652,13.41184853,205.55,205.48,8.53773397]
[1739187389344,13.41184853,205.55,205.46,8.53773397]
[1739187389345,0.25098,205.52,205.46,8.53773397]
[1739187389649,0.25098,205.52,205.42,8.53773397]
[1739187389650,21.9495825,205.49,205.42,8.53773397]
[1739187390362,9.45043579,205.52,205.45,8.53773397]
[1739187390751,13.41184853,205.51,205.45,8.53773397]
[1739187391048,21.9495825,205.49,205.42,8.53773397]
[1739187391256,13.41184853,205.47,205.41,8.53773397]
[1739187391429,13.41184853,205.45,205.39,8.53773397]
[1739187392464,18.27934853,205.45,205.39,8.53773397]
[1739187392666,26.8170825,205.45,205.38,8.53773397]
[1739187392840,27.72996093,205.45,205.38,8.53773397]
[1739187393630,0.12549,205.44,205.38,8.53773397]
[1739187394354,13.41184853,205.45,205.4,8.53773397]
[1739187394653,94.40483397,205.47,205.4,8.53773397]
[1739187394857,23.11338487,205.46,205.39,8.53773397]
[1739187395042,0.25098,205.44,205.38,8.53773397]
[1739187395245,13.41184853,205.43,205.38,8.53773397]
[1739187396241,18.27964853,205.43,205.38,8.53773397]
[1739187398439,13.66282853,205.44,205.4,8.53773397]
[1739187398647,18.53042853,205.44,205.4,8.53773397]
[1739187398838,18.53042853,205.44,205.39,8.53773397]
[1739187399159,19.44334301,205.44,205.39,8.53773397]
[1739187399362,27.98107698,205.44,205.37,8.53773397]
[1739187399535,0.25098,205.42,205.36,8.60073397]
[1739187399732,23.11361,205.42,205.36,8.60073397]
[1739187400461,4.8683,205.41,205.36,8.60073397]
[1739187401356,13.66282853,205.4,205.36,0.063]
[1739187401760,13.66282853,205.4,205.38,0.063]
[1739187402164,4.8687,205.39,205.38,0.063]
[1739187403273,18.53152853,205.39,205.38,0.063]
[1739187403447,13.41184853,205.39,205.38,0.063]
[1739187406269,18.53152853,205.39,205.38,0.063]
[1739187406454,27.0692625,205.39,205.38,0.063]
[1739187406855,27.98260567,205.39,205.38,0.063]
[1739187407074,42.64260567,205.39,205.38,0.063]
[1739187407247,48.70320567,205.39,205.38,0.063]
[1739187408857,34.04320567,205.39,205.38,0.063]
[1739187409171,18.53152853,205.39,205.38,0.063]
[1739187409352,19.44461899,205.39,205.38,0.063]
[1739187409674,18.53152853,205.39,205.38,0.063]
[1739187413354,19.44476056,205.39,205.38,0.063]
[1739187415798,13.66282853,205.39,205.38,0.063]
[1739187416461,13.41184853,205.39,205.38,8.60073397]
[1739187418473,13.41184853,205.39,205.38,0.063]
[1739187419279,19.44453386,205.39,205.38,0.063]
[1739187419462,27.98226783,205.39,205.38,0.063]
[1739187420767,19.44453386,205.39,205.38,0.063]
[1739187421482,0.25098,205.37,205.36,0.063]
[1739187421688,43.11391547,205.37,205.36,0.063]
[1739187422696,38.53202853,205.37,205.36,0.063]
[1739187423486,18.53202853,205.37,205.36,0.063]
[1739187424379,27.0697625,205.37,205.36,0.063]
[1739187425691,38.53202853,205.37,205.36,0.063]
[1739187427689,47.0697625,205.37,205.36,0.063]
[1739187427876,13.66282853,205.36,205.33,0.063]
[1739187428076,13.66282853,205.34,205.33,0.063]
[1739187428603,14.57620993,205.34,205.33,0.063]
[1739187428785,0.25098,205.34,205.33,0.063]
[1739187428974,45.58003397,205.37,205.33,0.063]
[1739187429170,14.57610006,205.36,205.33,0.063]
[1739187429777,18.53242853,205.36,205.33,0.063]
[1739187431496,81.0,205.35,205.33,0.063]
[1739187433503,85.8698,205.35,205.33,0.063]
[1739187435892,81.0,205.35,205.33,0.063]
[1739187436292,85.8697,205.35,205.33,0.063]
[1739187438408,13.66282853,205.34,205.33,0.063]
[1739187439798,18.53272853,205.34,205.33,0.063]
[1739187441805,18.28174853,205.34,205.33,0.063]
[1739187442301,18.53272853,205.34,205.33,0.063]
[1739187443701,24.91796403,205.34,205.33,0.063]
[1739187444079,45.65696403,205.34,205.33,0.0001]
[1739187446518,33.66282853,205.31,205.26,0.063]
[1739187446703,81.0,205.3,205.26,0.063]
[1739187447313,13.66282853,205.29,205.26,0.063]
[1739187448308,13.41184853,205.29,205.27,5.47192938]
[1739187448507,13.41184853,205.29,205.28,5.47192938]
[1739187449014,13.41184853,205.29,205.26,0.063]
[1739187449015,13.41184853,205.29,205.27,5.47192938]
[1739187449215,13.41184853,205.29,205.26,5.53492938]
[1739187449606,13.41184853,205.29,205.26,8.61613925]
[1739187449801,13.41184853,205.29,205.26,0.063]
[1739187450719,13.41184853,205.29,205.27,8.55313925]
[1739187450910,13.41184853,205.29,205.28,8.55313925]
[1739187451412,0.25098,205.28,205.26,0.063]
[1739187454298,13.41184853,205.29,205.26,0.063]
[1739187454653,13.41184853,205.29,205.26,8.61613925]
[1739187454808,13.41184853,205.29,205.26,0.063]
[1739187455608,0.25098,205.28,205.26,0.063]
[1739187456725,5.12238,205.28,205.26,0.063]
[1739187457332,13.66282853,205.27,205.26,0.063]
[1739187458198,20.0,205.28,205.26,0.063]
[1739187459229,19.44804938,205.27,205.26,0.063]
[1739187459405,19.44810234,205.27,205.26,0.063]
[1739187461831,18.53442853,205.27,205.26,0.063]
[1739187463230,13.41184853,205.27,205.26,0.063]
[1739187464057,18.28344853,205.27,205.26,0.063]
[1739187464233,13.41184853,205.27,205.26,0.063]
[1739187465467,4.8711,205.29,205.26,0.063]
[1739187465755,4.8709,205.31,205.26,8.61613925]
[1739187466156,13.41184853,205.3,205.26,8.61613925]
[1739187466459,13.41184853,205.3,205.26,0.063]
[1739187466769,13.41184853,205.3,205.26,8.61613925]
[1739187467343,13.41184853,205.3,205.26,0.063]
[1739187468036,18.28284853,205.3,205.26,0.063]
[1739187468850,13.41184853,205.3,205.26,0.063]
[1739187469358,13.41184853,205.3,205.27,8.55313925]
[1739187469759,13.41184853,205.3,205.28,5.47309294]
[1739187470258,13.41184853,205.3,205.26,5.53609294]
[1739187470458,18.28284853,205.3,205.26,5.53609294]
[1739187470761,13.41184853,205.28,205.26,0.063]
[1739187471666,94.41184853,205.28,205.26,0.063]
[1739187471950,4.8716,205.27,205.26,0.063]
[1739187472465,18.28344853,205.27,205.26,0.063]
[1739187472834,13.41184853,205.27,205.26,0.063]
[1739187481846,18.40893853,205.27,205.26,0.063]
[1739187482161,24.92113789,205.27,205.26,0.063]
[1739187483440,13.41184853,205.27,205.26,0.063]
[1739187486351,18.28344853,205.27,205.26,0.063]
[1739187486972,18.40893853,205.27,205.26,0.063]
[1739187487173,23.88203147,205.27,205.26,0.063]
[1739187488671,18.40893853,205.27,205.26,0.063]
[1739187488855,19.32262853,205.27,205.26,0.063]
[1739187489058,13.53733853,205.27,205.26,0.063]
[1739187489366,14.45096354,205.27,205.26,0.063]
[1739187489580,19.32256354,205.27,205.26,0.063]
[1739187489956,18.40893853,205.27,205.26,0.063]
[1739187490463,18.53442853,205.27,205.26,0.063]
[1739187490866,19.44819752,205.27,205.26,0.063]
[1739187499870,13.66282853,205.27,205.26,0.063]
[1739187500371,18.53442853,205.27,205.26,0.063]
[1739187507276,13.66282853,205.27,205.26,0.063]
[1739187508281,18.53442853,205.27,205.26,0.063]
[1739187514670,19.53442853,205.27,205.26,0.0001]
[1739187514872,46.89989323,205.27,205.26,0.0001]
[1739187515175,25.00752147,205.27,205.26,0.0001]
[1739187517286,32.64988583,205.27,205.26,0.0001]
[1739187517491,20.25098,205.23,205.21,0.063]
[1739187517696,20.0500298,205.22,205.21,0.063]
[1739187517979,20.0500298,205.22,205.17,0.063]
[1739187518179,13.66282853,205.18,205.17,0.063]
[1739187518361,20.05003045,205.18,205.17,0.063]
[1739187518568,24.92373045,205.18,205.17,0.063]
[1739187519903,13.66282853,205.18,205.17,0.063]
[1739187520078,19.45054529,205.18,205.17,0.063]
[1739187520400,13.66282853,205.18,205.17,0.063]
[1739187520889,0.25098,205.18,205.17,0.063]
[1739187521067,33.66282853,205.18,205.17,0.063]
[1739187522889,13.53733853,205.18,205.17,0.063]
[1739187523475,13.41184853,205.18,205.17,0.063]
[1739187524103,20.0,205.23,205.17,5.53609294]
[1739187524275,20.0,205.23,205.19,5.47309294]
[1739187524472,13.41184853,205.22,205.18,5.47309294]
[1739187524764,13.41184853,205.22,205.19,5.47309294]
[1739187524987,13.41184853,205.22,205.2,5.47309294]
[1739187525169,13.41184853,205.22,205.19,5.47309294]
[1739187525369,13.41184853,205.22,205.18,5.47309294]
[1739187527386,13.41184853,205.22,205.18,10.34679294]
[1739187527571,13.41184853,205.22,205.19,5.47309294]
[1739187528291,20.0,205.23,205.19,5.47309294]
[1739187528292,21.07589329,205.2,205.19,5.47309294]
[1739187528587,7.66404476,205.2,205.19,5.47309294]
[1739187530599,7.66404476,205.2,205.19,10.40959294]
[1739187530900,13.41184853,205.26,205.19,10.40959294]
[1739187531195,13.41184853,205.26,205.22,5.47309294]
[1739187531580,13.41184853,205.26,205.21,5.47309294]
[1739187532390,13.41184853,205.26,205.22,5.47309294]
[1739187533811,13.41184853,205.26,205.23,5.47309294]
[1739187534703,13.41184853,205.26,205.22,5.47309294]
[1739187534894,0.12549,205.25,205.19,0.063]
[1739187535093,0.12549,205.25,205.21,5.47309294]
[1739187535477,13.41184853,205.24,205.21,5.47309294]
[1739187539284,18.28424853,205.24,205.2,5.47309294]
[1739187539484,18.28424853,205.24,205.19,0.063]
[1739187539801,0.25098,205.21,205.19,0.063]
[1739187540001,94.53733853,205.2,205.19,0.063]
[1739187540602,95.45130853,205.2,205.19,0.063]
[1739187540804,100.92440147,205.2,205.19,0.063]
[1739187541011,100.01043147,205.2,205.19,0.063]
[1739187541308,104.88363147,205.2,205.19,0.063]
[1739187541481,24.00912147,205.2,205.19,0.063]
[1739187542083,13.53733853,205.2,205.19,0.063]
[1739187542387,13.41184853,205.2,205.19,0.063]
[1739187542787,13.41184853,205.2,205.19,5.53609294]
[1739187543387,0.03,205.22,205.19,10.40959294]
[1739187543612,0.03,205.22,205.21,5.47309294]
[1739187545311,0.03,205.22,205.19,0.063]
[1739187546281,5.72407294,205.2,205.19,0.063]
[1739187546483,20.0499383,205.2,205.19,0.063]
[1739187547384,24.9231383,205.2,205.19,0.063]
[1739187548697,19.45004536,205.2,205.19,0.063]
[1739187548891,24.9231383,205.2,205.19,0.063]
[1739187549806,28.01602775,205.2,205.19,0.063]
[1739187553807,29.58362775,205.2,205.19,0.063]
[1739187554314,22.22881092,205.18,205.17,0.063]
[1739187554513,43.14309995,205.18,205.17,0.063]
[1739187554996,23.14309995,205.18,205.17,0.063]
[1739187555701,28.01679995,205.18,205.17,0.063]
[1739187558718,28.01679995,205.18,205.15,0.063]
[1739187558719,0.25098,205.16,205.15,0.063]
[1739187558901,23.14321672,205.16,205.15,0.063]
[1739187559800,43.14321672,205.16,205.15,0.063]
[1739187560009,28.01741672,205.16,205.15,0.063]
[1739187562399,18.53702853,205.16,205.15,0.063]
[1739187562908,13.66282853,205.16,205.15,0.063]
[1739187564822,18.53702853,205.16,205.15,0.063]
[1739187567323,13.66282853,205.16,205.15,0.063]
[1739187568511,18.53702853,205.16,205.15,0.063]
[1739187568817,27.10301092,205.16,205.15,0.063]
[1739187570536,28.0173431,205.16,205.15,0.063]
[1739187571125,29.0173431,205.16,205.15,0.063]
[1739187571318,20.25098,205.13,205.12,0.063]
[1739187571526,43.1432676,205.13,205.12,0.063]
[1739187571729,40.06336715,205.13,205.12,0.063]
[1739187573322,44.93826715,205.13,205.12,0.063]
[1739187573705,38.53772853,205.13,205.12,0.063]
[1739187573910,44.93813216,205.13,205.12,0.063]
[1739187578433,20.25098,205.1,205.09,0.063]
[1739187578619,41.06350123,205.1,205.09,0.0001]
[1739187578818,20.25098,205.06,205.05,0.063]
[1739187579129,34.57758919,205.06,205.05,0.063]
[1739187579509,40.06367113,205.06,205.05,0.063]
[1739187581312,44.94027113,205.06,205.05,0.063]
[1739187588832,33.66282853,205.06,205.05,0.063]
[1739187589528,44.9400907,205.06,205.05,0.063]
[1739187600254,14.66282853,205.05,205.03,0.0001]
[1739187600448,101.06380068,205.04,205.03,0.0001]
[1739187600638,100.14891047,205.04,205.03,0.0001]
[1739187601632,105.02591047,205.04,205.03,0.0001]
[1739187602654,94.66282853,205.04,205.03,0.0001]
[1739187603336,94.41184853,205.04,205.03,5.48618194]
[1739187603752,13.41184853,205.04,205.03,5.48618194]
[1739187603960,81.12549,205.08,205.03,5.48618194]
[1739187604430,0.25098,205.06,205.03,0.0001]
[1739187604632,0.25098,205.04,205.03,0.0001]
[1739187605164,13.66282853,205.04,205.03,0.0001]
[1739187605332,0.25098,205.04,205.03,0.0001]